Cogmind - Beta 10.2 @@@ ROGUE MODE // 2021.10.28 @ 21:02:33 Player: ptdel Result: Destroyed by DAS Turret with DAS Cannon Performance ------------- Evolutions (1) 500 Regions Visited (4) 800 Robots Destroyed (41) 205 Value Destroyed (782) 782 Prototype IDs (2) 40 Alien Tech Used (0) 0 Bonus (300) 300 TOTAL SCORE: 2627 Bonus ------- Aligned with FarCom 300 Cogmind --------- Core Integrity 0/400 Matter 300/300 Energy 98/100 System Corruption 7% Temperature Cool (0) Movement Core (50) Location -9/Exiles Parts ------- > --- POWER (1) -------- (None) > --- PROPULSION (2) --- (None) > --- UTILITY (4) ------ (None) > --- WEAPON (2) ------- (None) > --- INVENTORY (4) ---- VTOL Module VTOL Module VTOL Module Supersonic Drone Bay Peak State ------------ > --- POWER ------------ Light Ion Engine > --- PROPULSION ------- Light Treads Light Treads > --- UTILITY ---------- Small Storage Unit Medium Matter Pod Hardened Light Armor Plating Hacking Suite > --- WEAPON ----------- Light Assault Rifle Ripper > --- INVENTORY -------- Light Ion Engine VTOL Module VTOL Module VTOL Module Improved Sensor Array Light Assault Rifle [Rating: 16] Favorites ----------- Power Ion Engine Engine Ion Engine Propulsion Light Treads Treads Light Treads Utility Small Storage Unit Device Weight Redist. System Storage Small Storage Unit Hackware Hacking Suite Protection Hardened Light Armor Plating Weapon Autogun Energy Gun Small Laser Ballistic Gun Autogun Launcher Grenade Launcher Slashing Weapon Ripper Build | -11 -10 -9 -9 -9 ------- Run | Scr Mat Mat Min Exi Slots Evolved 2 | . . 2 . . Power . | . . . . . Propulsion . | . . . . . Utility 2 | . . 2 . . Weapon . | . . . . . Parts Attached 37 | 7 13 12 4 1 Power 5 | 1 2 1 1 . Engine 5 | 1 2 1 1 . Core . | . . . . . Reactor . | . . . . . Propulsion 8 | 2 2 4 . . Treads 8 | 2 2 4 . . Leg . | . . . . . Wheel . | . . . . . Hover . | . . . . . Flight . | . . . . . Utility 6 | 1 1 4 . . Device 1 | . 1 . . . Storage 2 | 1 . 1 . . Processor . | . . . . . Hackware 1 | . . 1 . . Protection 2 | . . 2 . . Artifact . | . . . . . Weapon 18 | 3 8 3 3 1 Energy Gun 4 | 2 . 2 . . Energy Cannon . | . . . . . Ballistic Gun 9 | 1 6 . 2 . Ballistic Cannon . | . . . . . Launcher 3 | . 2 1 . . Special Weapon . | . . . . . Impact Weapon . | . . . . . Slashing Weapon 2 | . . . 1 1 Piercing Weapon . | . . . . . Special Melee Weapon . | . . . . . Unidentified Prototypes . | . . . . . Parts Lost 17 | . 1 6 1 9 Power 3 | . . 1 1 1 Propulsion 3 | . . 1 . 2 Utility 5 | . . 1 . 4 Weapon 6 | . 1 3 . 2 Highest Loss Streak 9 | . 1 2 1 9 Average Slot Usage (%) 95 | . 96 92 91 98 Engine 12 | . 13 10 10 11 Treads 25 | . 27 21 22 21 Device 7 | . 11 5 . . Storage 15 | . 14 13 22 21 Hackware 4 | . . 11 11 11 Protection 4 | . . 8 11 10 Energy Gun 3 | . 3 8 . . Ballistic Gun 18 | . 22 9 13 17 Launcher 1 | . 2 2 . . Naked Turns 3 | . . . . 3 Heaviest Build 20 | 12 15 20 18 18 Greatest Support 46 | 40 46 46 40 40 Greatest Overweight (x) 3 | . . . . 3 Average Overweight (x) . | . . . . . Largest Inventory Capacity 6 | 6 6 6 6 6 Average Capacity 5 | 5 6 6 6 5 Most Carried 6 | 3 6 6 6 6 Average Carried 5 | 1 5 5 5 5 Final Capacity 6 | 6 6 6 6 4 Final Carried 6 | 2 6 5 6 4 Class Distribution -------------------- 65% | Mutant 34% | Scavenger-Mutant Dominant Class ---------------- Mutant | -10/Materials Scavenger-Mutant | -9/Materials Scavenger-Mutant | -9/Mines Scavenger-Mutant | -9/Exiles Resources | -11 -10 -9 -9 -9 ----------- Run | Scr Mat Mat Min Exi Matter Collected 1087 | 183 357 480 67 . Remotely . | . . . . . Salvage Created 962 | . 397 457 108 . Parts 83 | . 33 35 15 . Haulers Intercepted . | . . . . . Recyclers Shooed . | . . . . . Parts Field Recycled . | . . . . . Retrieved Matter . | . . . . . Parts Self-Destructed . | . . . . . Prevented . | . . . . . Kills | -11 -10 -9 -9 -9 ------- Run | Scr Mat Mat Min Exi Combat Hostiles Destroyed 32 | . 11 14 7 . Melee 2 | . . . 2 . Guns 28 | . 11 12 5 . AOE 2 | . . 2 . . Classes Destroyed 9 | . 5 4 . . Worker 3 | . 2 1 . . Builder 1 | . . 1 . . Tunneler 1 | . . 1 . . Operator 1 | . 1 . . . Watcher 3 | . 3 . . . Swarmer 18 | . 6 5 7 . Grunt 11 | . 5 6 . . Brawler 1 | . . 1 . . Sentry 2 | . . 2 . . Best Kill Streak 5 | . 3 5 3 . Combat Bots Only 5 | . 3 5 3 . Max Kills in Single Turn 2 | . 2 1 1 . Gunslinging . | . . . . . Exploded 1 | . . 1 . . Melee 1 | . . . 1 . Uniques/NPCs Destroyed . | . . . . . Combat | -11 -10 -9 -9 -9 -------- Run | Scr Mat Mat Min Exi Damage Taken 2406 | . 467 1062 254 623 Core 500 | . 83 114 70 233 Absorbed by Shields . | . . . . . Core Remaining (%) 83 | 100 66 . . . Volleys Fired 83 | . 38 33 12 . Largest 2 | . 2 2 2 . Hottest 112 | . 80 112 40 . Shots Fired 160 | . 76 61 21 2 Gun 156 | . 76 57 21 2 Cannon . | . . . . . Launcher 4 | . . 4 . . Special . | . . . . . Kinetic 121 | . 53 45 21 2 Thermal 35 | . 23 12 . . Explosive 4 | . . 4 . . Electromagnetic . | . . . . . Robot Hit Streak 14 | . 10 14 3 . Robot Miss Streak 4 | . 4 3 2 1 Penetration Max . | . . . . . Secondary Targets 4 | . 2 2 . . Max Gunslinging Chain 1 | . 1 1 . . Shots Hit Robots 100 | . 46 41 13 . Core Hits 58 | . 24 24 10 . Critical Hits . | . . . . . Critical Kills . | . . . . . Critical Parts Destroyed . | . . . . . Melee Attacks 5 | . . . 5 . Impact . | . . . . . Slashing 5 | . . . 5 . Piercing . | . . . . . Sneak Attacks . | . . . . . Combat Hostiles . | . . . . . Follow-up Attacks . | . . . . . Damage Inflicted 1492 | . 618 731 143 . Guns 1283 | . 618 607 58 . Cannons . | . . . . . Explosions 122 | . . 122 . . Melee 64 | . . . 64 . Ramming 23 | . . 2 21 . Kinetic 998 | . 450 490 58 . Thermal 285 | . 168 117 . . Explosive 122 | . . 122 . . Electromagnetic . | . . . . . Impact . | . . . . . Slashing 64 | . . . 64 . Piercing . | . . . . . Highest Corruption 7 | . . 5 5 7 Average Corruption 5 | . . 5 5 5 Corruption Purged . | . . . . . Effects 26 | . . 10 10 6 Message Errors 5 | . . 2 3 . Matter Fused 5 | . . 1 3 1 Heat Flow Errors 5 | . . 2 2 1 Energy Discharges 2 | . . . 1 1 Data Loss (minor) 5 | . . 3 1 1 Data Loss (major) 1 | . . 1 . . Misfires 3 | . . 1 . 2 Overload Shots . | . . . . . Overflow Damage . | . . . . . Projectiles . | . . . . . Explosions . | . . . . . Melee . | . . . . . Knockbacks . | . . . . . Impact . | . . . . . Kinetic . | . . . . . Secondary . | . . . . . Self-Inflicted Damage 59 | . . 59 . . Shots 3 | . . 3 . . Rammed 7 | . . . 7 . Targets Rammed 8 | . . 1 7 . Kicked . | . . . . . Crushed 1 | . . 1 . . Highest Temperature 395 | . 151 395 262 149 Average Temperature 81 | . 44 121 65 67 Received Heat Transfer 354 | . 153 201 . . Effects 1 | . . 1 . . Interference 1 | . . 1 . . Siege Activations . | . . . . . Robots Corrupted . | . . . . . Combat Hostiles . | . . . . . Parts Fried . | . . . . . Impact Corruptions . | . . . . . Robots Melted . | . . . . . Combat Hostiles . | . . . . . Parts Melted . | . . . . . Heat Transferred 671 | . 375 296 . . Parts Sabotaged . | . . . . . Parts Stolen . | . . . . . Parts Stripped . | . . . . . Power Chain Reactions . | . . . . . Missiles Intercepted . | . . . . . Alert | -11 -10 -9 -9 -9 ------- Run | Scr Mat Mat Min Exi Peak Influence 300 | . 197 300 270 . Initial 60 | . . 12 60 . Average 91 | . 51 167 156 . Maximum Alert Level 1 | . . 1 1 . Low Security (%) 84 | 100 100 55 61 . Level 1 15 | . . 44 38 . Level 2 . | . . . . . Level 3 . | . . . . . Level 4 . | . . . . . Level 5 . | . . . . . High Security . | . . . . . Max Security . | . . . . . Squads Dispatched 6 | . 2 4 . . Investigation 1 | . . 1 . . Extermination . | . . . . . Reinforcement 5 | . 2 3 . . Assault . | . . . . . Garrison . | . . . . . Intercept . | . . . . . Construction Impeded . | . . . . . Haulers Reinforced . | . . . . . Stealth | -11 -10 -9 -9 -9 --------- Run | Scr Mat Mat Min Exi Distress Signals 2 | . . 2 . . Communications Jammed . | . . . . . Distress Signals . | . . . . . Times Spotted 70 | . 22 22 11 15 Peak Tracking Total 13 | . 4 6 4 13 Tactical Retreats 5 | . 2 . 2 1 Traps | -11 -10 -9 -9 -9 ------- Run | Scr Mat Mat Min Exi Traps Triggered 2 | . 2 . . . Indirectly . | . . . . . Trap Hack Attempts . | . . . . . Triggered . | . . . . . Disarmed . | . . . . . Reprogrammed . | . . . . . Reused . | . . . . . Traps Extracted . | . . . . . Installed . | . . . . . Triggered . | . . . . . Machines | -11 -10 -9 -9 -9 ---------- Run | Scr Mat Mat Min Exi Machines Disabled 1 | . . 1 . . Max in Single Turn 1 | . . 1 . . Machines Sabotaged . | . . . . . Garrisons Compromised . | . . . . . Overloaded Fab Kills . | . . . . . Fab Network Shutdowns . | . . . . . Hacking | -11 -10 -9 -9 -9 --------- Run | Scr Mat Mat Min Exi Machines Accessed 9 | . 7 1 1 . Terminals 8 | . 6 1 1 . Fabricators . | . . . . . Repair Stations 1 | . 1 . . . Recycling Units . | . . . . . Scanalyzers . | . . . . . Garrison Access . | . . . . . Total Hacks 20 | . 16 3 1 . Successful 12 | . 10 1 1 . Failed 7 | . 5 2 . . Catastrophic . | . . . . . Database Lockouts 1 | . 1 . . . Manual 17 | . 16 . . 1 Terminals 17 | . 13 3 1 . Fabricators . | . . . . . Repair Stations 3 | . 3 . . . Recycling Units . | . . . . . Scanalyzers . | . . . . . Garrison Access . | . . . . . Terminal Hacks 9 | . 7 1 1 . Record 2 | . 1 1 . . Prototype ID Bank 2 | . 2 . . . Unreport Threat 2 | . 2 . . . Dispatch Records 2 | . 1 . 1 . Recall Investigation 1 | . 1 . . . Fabricator Hacks . | . . . . . Repair Station Hacks 3 | . 3 . . . Scan Component 2 | . 2 . . . Repair 1 | . 1 . . . Recycling Unit Hacks . | . . . . . Scanalyzer . | . . . . . Garrison Access Hacks . | . . . . . Unauthorized Hacks . | . . . . . Terminals . | . . . . . Fabricators . | . . . . . Repair Stations . | . . . . . Recycling Units . | . . . . . Scanalyzers . | . . . . . Garrison Access . | . . . . . Data Cores Recovered . | . . . . . Used . | . . . . . Hacking Detections 8 | . 7 1 . . Full Trace Events 3 | . 2 1 . . Feedback Events . | . . . . . Feedback Blocked . | . . . . . Robot Schematics Acquired . | . . . . . Robots Built . | . . . . . Matter . | . . . . . Time . | . . . . . Total Robot Build Rating . | . . . . . Part Schematics Acquired . | . . . . . Parts Built . | . . . . . Matter . | . . . . . Time . | . . . . . Total Part Build Rating . | . . . . . Parts Repaired 1 | . 1 . . . Time 26 | . 26 . . . Parts Recycled . | . . . . . Recycled Matter . | . . . . . Retrieved Matter . | . . . . . Retrieved Components . | . . . . . Parts Scanalyzed . | . . . . . Part Schematics Acquired . | . . . . . Parts Damaged . | . . . . . Bothacking | -11 -10 -9 -9 -9 ------------ Run | Scr Mat Mat Min Exi Used RIF Installer . | . . . . . Robots Hacked . | . . . . . Non-combat . | . . . . . Combat . | . . . . . Robot Hacks Applied . | . . . . . Relay Couplers Released . | . . . . . Robots Rewired . | . . . . . Allies Hacked . | . . . . . Hacks Repelled . | . . . . . Allies | -11 -10 -9 -9 -9 -------- Run | Scr Mat Mat Min Exi Total Allies . | . . . . . Largest Group . | . . . . . Highest-Rated Group . | . . . . . Highest-Rated Ally . | . . . . . Total Orders . | . . . . . Ally Attacks . | . . . . . Total Damage . | . . . . . Kills . | . . . . . Allies Corrupted . | . . . . . Allies Melted . | . . . . . Intel | -11 -10 -9 -9 -9 ------- Run | Scr Mat Mat Min Exi Robot Analysis Total . | . . . . . Derelict Logs Recovered . | . . . . . Drone Launches . | . . . . . Drone Recoveries . | . . . . . Exploration | -11 -10 -9 -9 -9 ------------- Run | Scr Mat Mat Min Exi Turns Passed 3117 | 58 1712 587 434 326 Spaces Moved 1701 | 31 951 288 225 206 Core 15 | 5 . . . 10 Treads 1686 | 26 951 288 225 196 Legs . | . . . . . Wheels . | . . . . . Hover . | . . . . . Flight . | . . . . . Fastest Speed 50 | 50 160 160 160 50 Average Speed 159 | 142 160 160 160 156 Slowest Speed 200 | 160 160 160 160 200 Overloaded Moves . | . . . . . Propulsion Burnouts . | . . . . . Robots Hopped . | . . . . . Cave-ins Triggered 1 | . . 1 . . Exploration Rate (%) 45 | 3 99 19 51 57 Regions Visited 4 Branch Regions 2 Pre-discovered Areas . | . . . . . Known Exits Taken . | . . . . . Unknown Exits Taken 4 | 1 1 1 1 . Scrap Searched . | . . . . . Spaces Dug . | . . . . . Terrain Destroyed 32 | . . 32 . . Melee . | . . . . . Projectile . | . . . . . AOE 32 | . . 32 . . Terrain Rammed . | . . . . . Walls Destroyed . | . . . . . Machines Disabled . | . . . . . Actions | -11 -10 -9 -9 -9 --------- Run | Scr Mat Mat Min Exi Total 1963 | 45 1074 365 270 209 Wait 68 | . 47 7 14 . Move 1697 | 30 950 287 224 206 Hop . | . . . . . Pick Up 47 | 8 19 15 4 1 Fast Attach . | . . . . . Attach 24 | 6 8 7 3 . Detach . | . . . . . Swap 13 | 1 5 5 1 1 Drop 18 | . 7 10 . 1 Fire 83 | . 38 33 12 . Melee 5 | . . . 5 . Ram . | . . . . . Kick . | . . . . . Crush 8 | . . 1 7 . Escape Stasis . | . . . . . Rewire . | . . . . . Trap . | . . . . . Miscellaneous . | . . . . . Route ------- -11/Scrapyard -10/Materials (discovered 5 exits: *Mat x3 / [*Min x2]) -9/Materials -9/Mines (discovered 2 exits: [*Mat] / *Exi) -9/Exiles (discovered 1 exit: [*Min]) History --------- Turn | Location | Event 2 | -11/Scrapyard | Met Revision 17 10 | -11/Scrapyard | Discovered new exit (range 16) 59 | -11/Scrapyard | Entered Materials 59 | -10/Materials | Discovered new exit (range 8) 192 | -10/Materials | Discovered new exit (range 16) 306 | -10/Materials | Build established: Mutant 659 | -10/Materials | Discovered new exit (range 13) 848 | -10/Materials | Central database locked down 977 | -10/Materials | Discovered new exit (range 11) 1178 | -10/Materials | Repaired Lgt. Treads 1454 | -10/Materials | Discovered new exit (range 5) 1771 | -10/Materials | Entered another Materials area 1771 | -9/Materials | Evolved 2 slots: Utility x2 2071 | -9/Materials | Crushed by falling debris 2188 | -9/Materials | Discovered new exit (range 12) 2358 | -9/Materials | Entered Mines 2376 | -9/Mines | Build established: Scavenger-Mutant 2386 | -9/Mines | Discovered new exit (range 8) 2524 | -9/Mines | A weapon hastily lodged in a ceiling crevice suddenly fell to the ground 2785 | -9/Mines | Deemed a non-threat by the Exiles lab entrance 2785 | -9/Mines | Discovered new exit (range 5) 2792 | -9/Mines | Entered Exiles 2823 | -9/Exiles | Discovered new exit (range 14) 2853 | -9/Exiles | Met 8R-AWN 2880 | -9/Exiles | Met EX-HEX 2928 | -9/Exiles | Met EX-BIN 2951 | -9/Exiles | Aligned with FarCom system 2952 | -9/Exiles | Given EX-Vault access code 2992 | -9/Exiles | Opened EX-Vault 3004 | -9/Exiles | Found Prototype Device 3035 | -9/Exiles | Warned to stay clear of 0b10 Research branches 3080 | -9/Exiles | Met EX-DEC 3101 | -9/Exiles | Attacked by the Exiles 3105 | -9/Exiles | Core integrity fell below 50% 3117 | -9/Exiles | Core integrity fell below 20% 3118 | -9/Exiles | Destroyed by DAS Turret with DAS Cannon Last Messages --------------- EX-DEC: Ah I see we have a visitor. One wrong move in here and I'll invert your atomic chain! 03082_ EX-DEC: "Oops, I hope HEX didn't hear that..." 03101_ System corrupted: FCS attempts to trigger Lgt. Assault Rifle. 03101_ System corrupted: Lgt. Assault Rifle misfires. 03101_ EXILES: Hostile robot within lab perimeter. Defensive protocols time, folks! 03101_ Lgt. Treads destroyed. 03103_ EX-DEC: "Let's see what this bad boy can do..." 03103_ EX-DEC deploys DAS Turret. 03105_ Med. Matter Pod destroyed. 03105_ Lgt. Assault Rifle destroyed. 03106_ Hrd. Light Armor Plating destroyed. 03107_ Lgt. Treads destroyed. 03110_ Knocked back. 03111_ EX-BIN: "I just want to science!" 03112_ Lgt. Ion Engine destroyed. 03114_ Ripper destroyed. 03114_ Hacking Suite destroyed. 03115_ Sml. Storage Unit destroyed. Map ----- +----------------------------------------------------+ | ???????????????????????????????##"###??# #?#"" | | ???????????????????????????????????????# #?#"" | | ???????????????????????????????????????# #?#"" | | ??????????????????????????????????????## ###"" | | ??????????????????????????????????????#" | | ??????????????????????????????????????#" | | ??????????????????????????????????????#" | | ??????????????????????????????????????#" | | ??????????????????????????????????????#" | | ??????????????????????????????????????#" | | ???????????????????????????"??????????## | | ?????????????????????????? ??????????# | | ?????????????????????????" ??????????#" "X | | ?????????????????????????" ??????????#" "" | | ???????????????????????? "??????????#" """" | | ?????????????????????????" "?????????##" ##### | | ?????????????????????????# #????????##"" #???? | | ????????????? #####????### ###?######"" #???? | | ???????????? """#####X# #"###""""""" ##??? | | ???????????? """""" " "" ##?? | | ???????????? "" """ " ### | | ??????????? " " | | ????????????# | | ??????????????# | | ???????????????# | | ????????????????# @ | | ?????????????????#" | | ?????????????????#""" """""" | | ????????????????##" ######""" | | ????????????????#"" ""##????#####""" | | ???????????????##""" aa """##?????????##""" | | ???????????????#""" *! """##???????????#""" | | ???????????????#""" ""#????????????#"" | | ???????????????#"" a###???????????"""" | | ???????????????#""" a ## #?????? | | ???????????????#"" c "???? | | ???????????????##""t ???? | | ????????????????#"""" ???? | | ????????????????## ???? | | ?????????????????#" "????? "" | | ?????????????????#"""" ""???????"" " | | ?????????????????#"" ""#?????????##" | | ?????????????????#" """"#????????????? | | ?????????????????#""" """#????????????? | | ?????????????????## ""??????????????? | | ??????????????????#"" """#??????????????? | | ??????????????????##""" ##??????????????? | | ???????????????????##"""" ##???????????????? | | ????????????????????### #????????????????? | | ??????????????????????##### ##????????????????? | +----------------------------------------------------+ Best States ------------- Heat Dissipation 28 Energy Generation 10 Energy Capacity 250 Matter Stores 400 Matter Capacity 400 Sight Range 16 Terrain Scan Density 10 Additional Mass Support 6 Armor Coverage 150 Evasion (%) 40 Recoil Reduction 2 Offensive Hacking 10 Item Schematics ----------------- None Robot Schematics ------------------ None Fabricated ------------ Nothing Alien Tech Used ----------------- None Achievements -------------- None Challenges ------------ None Game ------ Seed TeslaStasisLauncher Manual? 0 Play Time 00:24:18 Cumulative 60.0 hours Start 2021.10.28 @ 20:35:45 End 2021.10.28 @ 21:02:33 Sessions 1 Manual Loads 0 Difficulty Rogue Special Mode None Game No. 77 Rogue 61 Adventurer 15 Explorer 1 Win Type - Total 0 Types 0/0/0/0/0/0/0/0/0 Lore% 26 Gallery% 41 Achievement% 36 Wizard Run 0 Options --------- ASCII 0 Keyboard 0 Movement Mouse Keybinds 0 Fullscreen 2 Font 18/SmallcapsGlow Map View 76x50 Tactical HUD 1 Map Filters NONE Filters NONE Steam 1 RUN: 9731731d-6962-46f4-b7b9-32ea0dda9d45